Workbook

Sheet Դոտացիա-2023թ.
H1: Հավելված N 2
A2: Հաշվետվություն
A3: Հայաստանի Հանրապետության համայնքների բյուջեներին «Ֆինանսական համահարթեցման մասին» Հայաստանի Հանրապետության օրենքով դոտացիաներ տրամադրելու նպատակով «Հայաստանի Հանրապետության 2023 թվականի պետական բյուջեի մասին» Հայաստանի Հանրապետության օրենքով նախատեսված հատկացումների ընդհանուր ծավալի բաշխման վերաբերյալ` ըստ առանձին համայնքների
H5: հազար դրամ
A6: Հ/Հ | B6: ՀՀ մարզերի և համայնքների անվանումները | C6: Տարեկան պլան ¹ | F6: Տարեկան ճշտված պլան ² | G6: Փաստ | H6: Կատարման %-ը տարեկան ճշտված պլանի նկատմամբ
C7: Ֆինանսական համահարթեցման դոտացիայի գումարը Ընդամենը (ս4+ս5) | D7: Հաշվարկվող տարվա (2023թ.) դոտացիայի ընդհանուր գումարի և բազային տարվա (2016թ.) ընդհանուր գումարի տարբերու-թյան բաշխումը | E7: Դոտացիայի գումարը բազային տարում (2016թ.) | F7: Ֆինանսական համահարթեցման դոտացիայի գումարը Ընդամենը | G7: Ֆինանսական համահարթեցման դոտացիայի գումարը Ընդամենը | H7: 7/6
A8: 1 | B8: 2 | C8: 3 | D8: 4 | E8: 5 | F8: 6 | G8: 7 | H8: 8
B9: ԸՆԴԱՄԵՆԸ | C9: =C11+C23+C31+C42+C50+C64+C78+C87+C97+C105+C112 -> 69754656.6 | D9: =D11+D23+D31+D42+D50+D64+D78+D87+D97+D105+D112 -> 22627114.7 | E9: 47127541.9 | F9: 69754656.6 | G9: 69754656.6 | H9: =G9/F9 -> 1
B10: այդ թվում՝
B11: ԵՐԵՎԱՆ ՔԱՂԱՔ | C11: 13430355.1 | D11: 0 | E11: 13430355.1 | F11: 13430355.1 | G11: 13430355.1 | H11: =G11/F11 -> 1
B13: ՀՀ ԱՐԱԳԱԾՈՏՆԻ ՄԱՐԶ
B14: այդ թվում՝
A15: 1 | B15: Ալագյազ | C15: 132261.6 | D15: 64592.8 | E15: 67668.8 | F15: 132261.6 | G15: 132261.6 | H15: =G15/F15 -> 1
A16: 2 | B16: Աշտարակ | C16: 2159764.7 | D16: 1073751.3 | E16: 1086013.4 | F16: 2159764.7 | G16: 2159764.7 | H16: 1
A17: 3 | B17: Ապարան | C17: 707052.8 | D17: 287035.8 | E17: 420017 | F17: 707052.8 | G17: 707052.8 | H17: 1
A18: 4 | B18: Մեծաձոր | C18: 9895.9 | D18: 2895.9 | E18: 7000 | F18: 9895.9 | G18: 9895.9 | H18: 1
A19: 5 | B19: Արևուտ | C19: 29103.9 | D19: 8103.9 | E19: 21000 | F19: 29103.9 | G19: 29103.9 | H19: 1
A20: 6 | B20: Թալին | C20: 1267337.5 | D20: 641683.7 | E20: 625653.8 | F20: 1267337.5 | G20: 1267337.5 | H20: 1
A21: 7 | B21: Ծաղկահովիտ | C21: 275417.7 | D21: 94563.6 | E21: 180854.1 | F21: 275417.7 | G21: 275417.7 | H21: 1
A22: 8 | B22: Շամիրամ | C22: 42265.1 | D22: 6576.1 | E22: 35689 | F22: 42265.1 | G22: 42265.1 | H22: 1
B23: ԸՆԴԱՄԵՆԸ | C23: =SUM(C15:C22) -> 4623099.2 | D23: =SUM(D15:D22) -> 2179203.1 | E23: 2443896.1 | F23: 4623099.2 | G23: 4623099.2 | H23: 1
B25: ՀՀ ԱՐԱՐԱՏԻ ՄԱՐԶ
A26: 1 | B26: Արարատ | C26: 1111464.3 | D26: 359168.9 | E26: 752295.4 | F26: 1111464.3 | G26: 1111464.3 | H26: =G26/F26 -> 1
A27: 2 | B27: Արտաշատ | C27: 3256027 | D27: 1773034.6 | E27: 1482992.4 | F27: 3256027 | G27: 3256027 | H27: 1
A28: 3 | B28: Մասիս | C28: 2292836.7 | D28: 955062.2 | E28: 1337774.5 | F28: 2292836.7 | G28: 2292836.7 | H28: 1
A29: 4 | B29: Վերին Դվին | C29: 45767.4 | D29: 10152.9 | E29: 35614.5 | F29: 45767.4 | G29: 45767.4 | H29: 1
A30: 5 | B30: Վեդի | C30: 1371233.4 | D30: 541760.6 | E30: 829472.8 | F30: 1371233.4 | G30: 1371233.4 | H30: 1
B31: ԸՆԴԱՄԵՆԸ | C31: =SUM(C26:C30) -> 8077328.8 | D31: =SUM(D26:D30) -> 3639179.2 | E31: 4438149.6 | F31: 8077328.8 | G31: 8077328.8 | H31: 1
B33: ՀՀ ԱՐՄԱՎԻՐԻ ՄԱՐԶ
A34: 1 | B34: Արաքս | C34: 667708.4 | D34: 222688.9 | E34: 445019.5 | F34: 667708.4 | G34: 667708.4 | H34: =G34/F34 -> 1
A35: 2 | B35: Արմավիր | C35: 1227888.7 | D35: 407399.2 | E35: 820489.5 | F35: 1227888.7 | G35: 1227888.7 | H35: 1
A36: 3 | B36: Բաղրամյան | C36: 425914.5 | D36: 134882.4 | E36: 291032.1 | F36: 425914.5 | G36: 425914.5 | H36: 1
A37: 4 | B37: Մեծամոր | C37: 2344299.7 | D37: 1126857.6 | E37: 1217442.1 | F37: 2344299.7 | G37: 2344299.7 | H37: 1
A38: 5 | B38: Խոյ | C38: 816171.2 | D38: 284307.3 | E38: 531863.9 | F38: 816171.2 | G38: 816171.2 | H38: 1
A39: 6 | B39: Վաղարշապատ | C39: 821975.3 | D39: 163298 | E39: 658677.3 | F39: 821975.3 | G39: 821975.3 | H39: 1
A40: 7 | B40: Փարաքար | C40: 538802.2 | D40: 143059.9 | E40: 395742.3 | F40: 538802.2 | G40: 538802.2 | H40: 1
A41: 8 | B41: Ֆերիկ | C41: 7150.4 | D41: 2517.9 | E41: 4632.5 | F41: 7150.4 | G41: 7150.4 | H41: 1
B42: ԸՆԴԱՄԵՆԸ | C42: =SUM(C34:C41) -> 6849910.4 | D42: =SUM(D34:D41) -> 2485011.2 | E42: 4364899.2 | F42: 6849910.4 | G42: 6849910.4 | H42: 1
B44: ՀՀ ԳԵՂԱՐՔՈՒՆԻՔԻ ՄԱՐԶ
A45: 1 | B45: Գավառ | C45: 1487011.3 | D45: 574827.6 | E45: 912183.7 | F45: 1487011.3 | G45: 1487011.3 | H45: =G45/F45 -> 1
A46: 2 | B46: Ճամբարակ | C46: 490624.6 | D46: 234155.8 | E46: 256468.8 | F46: 490624.6 | G46: 490624.6 | H46: 1
A47: 3 | B47: Մարտունի | C47: 2680869.1 | D47: 1100020.3 | E47: 1580848.8 | F47: 2680869.1 | G47: 2680869.1 | H47: 1
A48: 4 | B48: Սևան | C48: 914256.6 | D48: 241498.6 | E48: 672758 | F48: 914256.6 | G48: 914256.6 | H48: 1
A49: 5 | B49: Վարդենիս | C49: 1477564.3 | D49: 764897.3 | E49: 712667 | F49: 1477564.3 | G49: 1477564.3 | H49: 1
B50: ԸՆԴԱՄԵՆԸ | C50: =SUM(C45:C49) -> 7050325.9 | D50: =SUM(D45:D49) -> 2915399.6 | E50: 4134926.3 | F50: 7050325.9 | G50: 7050325.9 | H50: 1
B52: ՀՀ ԼՈՌՈՒ ՄԱՐԶ
A53: 1 | B53: Ալավերդի | C53: 1323261.8 | D53: 696503.7 | E53: 626758.1 | F53: 1323261.8 | G53: 1323261.8 | H53: =G53/F53 -> 1
A54: 2 | B54: Գյուլագարակ | C54: 218911.2 | D54: 79095.1 | E54: 139816.1 | F54: 218911.2 | G54: 218911.2 | H54: 1
A55: 3 | B55: Թումանյան | C55: 189401 | D55: 70774 | E55: 118627 | F55: 189401 | G55: 189401 | H55: 1
A56: 4 | B56: Լերմոնտովո | C56: 26455.5 | D56: 6445.8 | E56: 20009.7 | F56: 26455.5 | G56: 26455.5 | H56: 1
A57: 5 | B57: Լոռի Բերդ | C57: 132108 | D57: 48553.5 | E57: 83554.5 | F57: 132108 | G57: 132108 | H57: 1
A58: 6 | B58: Սպիտակ | C58: 1268636.1 | D58: 562716.5 | E58: 705919.6 | F58: 1268636.1 | G58: 1268636.1 | H58: 1
A59: 7 | B59: Ստեփանավան | C59: 411547.7 | D59: 171040.4 | E59: 240507.3 | F59: 411547.7 | G59: 411547.7 | H59: 1
A60: 8 | B60: Վանաձոր | C60: 2050869.2 | D60: 511921.9 | E60: 1538947.3 | F60: 2050869.2 | G60: 2050869.2 | H60: 1
A61: 9 | B61: Տաշիր | C61: 793541.7 | D61: 413286.6 | E61: 380255.1 | F61: 793541.7 | G61: 793541.7 | H61: 1
A62: 10 | B62: Փամբակ | C62: 401679 | D62: 157033.7 | E62: 244645.3 | F62: 401679 | G62: 401679 | H62: 1
A63: 11 | B63: Ֆիոլետովո | C63: 27246 | D63: 6583.8 | E63: 20662.2 | F63: 27246 | G63: 27246 | H63: 1
B64: ԸՆԴԱՄԵՆԸ | C64: =SUM(C53:C63) -> 6843657.2 | D64: =SUM(D53:D63) -> 2723955 | E64: 4119702.2 | F64: 6843657.2 | G64: 6843657.2 | H64: 1
B66: ՀՀ ԿՈՏԱՅՔԻ ՄԱՐԶ
A67: 1 | B67: Աբովյան | C67: 1568123.6 | D67: 480015.8 | E67: 1088107.8 | F67: 1568123.6 | G67: 1568123.6 | H67: =G67/F67 -> 1
A68: 2 | B68: Ակունք | C68: 244894.3 | D68: 103068 | E68: 141826.3 | F68: 244894.3 | G68: 244894.3 | H68: 1
A69: 3 | B69: Արզնի | C69: 37314 | D69: 0 | E69: 37314 | F69: 37314 | G69: 37314 | H69: 1
A70: 4 | B70: Բյուրեղավան | C70: 279283.3 | D70: 102307.5 | E70: 176975.8 | F70: 279283.3 | G70: 279283.3 | H70: 1
A71: 5 | B71: Գառնի | C71: 324545.6 | D71: 101988.1 | E71: 222557.5 | F71: 324545.6 | G71: 324545.6 | H71: 1
A72: 6 | B72: Եղվարդ | C72: 668936 | D72: 149481.3 | E72: 519454.7 | F72: 668936 | G72: 668936 | H72: 1
A73: 7 | B73: Ծաղկաձոր | C73: 102925.1 | D73: 0 | E73: 102925.1 | F73: 102925.1 | G73: 102925.1 | H73: 1
A74: 8 | B74: Հրազդան | C74: 1192180 | D74: 435223 | E74: 756957 | F74: 1192180 | G74: 1192180 | H74: 1
A75: 9 | B75: Նոր Հաճն | C75: 660767.4 | D75: 192839.5 | E75: 467927.9 | F75: 660767.4 | G75: 660767.4 | H75: 1
A76: 10 | B76: Չարենցավան | C76: 741027.8 | D76: 259221 | E76: 481806.8 | F76: 741027.8 | G76: 741027.8 | H76: 1
A77: 11 | B77: Ջրվեժ | C77: 107282.8 | D77: 0 | E77: 107282.8 | F77: 107282.8 | G77: 107282.8 | H77: 1
B78: ԸՆԴԱՄԵՆԸ | C78: =SUM(C67:C77) -> 5927279.9 | D78: =SUM(D67:D77) -> 1824144.2 | E78: 4103135.7 | F78: 5927279.9 | G78: 5927279.9 | H78: 1
B80: ՀՀ ՇԻՐԱԿԻ ՄԱՐԶ
A81: 1 | B81: Ախուրյան | C81: 1500856 | D81: 725475.3 | E81: 775380.7 | F81: 1500856 | G81: 1500856 | H81: =G81/F81 -> 1
A82: 2 | B82: Ամասիա | C82: 229879 | D82: 113720.8 | E82: 116158.2 | F82: 229879 | G82: 229879 | H82: 1
A83: 3 | B83: Աշոցք | C83: 345649.6 | D83: 151449.2 | E83: 194200.4 | F83: 345649.6 | G83: 345649.6 | H83: 1
A84: 4 | B84: Արթիկ | C84: 1713371.7 | D84: 739489 | E84: 973882.7 | F84: 1713371.7 | G84: 1713371.7 | H84: 1
A85: 5 | B85: Գյումրի | C85: 2588469.7 | D85: 621709.1 | E85: 1966760.6 | F85: 2588469.7 | G85: 2588469.7 | H85: 1
A86: 6 | B86: Անի | C86: 616805.1 | D86: 263569.5 | E86: 353235.6 | F86: 616805.1 | G86: 616805.1 | H86: 1
B87: ԸՆԴԱՄԵՆԸ | C87: =SUM(C81:C86) -> 6995031.1 | D87: =SUM(D81:D86) -> 2615412.9 | E87: 4379618.2 | F87: 6995031.1 | G87: 6995031.1 | H87: 1
B89: ՀՀ ՍՅՈՒՆԻՔԻ ՄԱՐԶ
A90: 1 | B90: Գորիս | C90: 859586.4 | D90: 324491.7 | E90: 535094.7 | F90: 859586.4 | G90: 859586.4 | H90: =G90/F90 -> 1
A91: 2 | B91: Կապան | C91: 1801101.2 | D91: 880164.1 | E91: 920937.1 | F91: 1801101.2 | G91: 1801101.2 | H91: 1
A92: 3 | B92: Մեղրի | C92: 339274.5 | D92: 146739.2 | E92: 192535.3 | F92: 339274.5 | G92: 339274.5 | H92: 1
A93: 4 | B93: Տաթև | C93: 200608.9 | D93: 81588 | E93: 119020.9 | F93: 200608.9 | G93: 200608.9 | H93: 1
A94: 5 | B94: Սիսիան | C94: 1153486.6 | D94: 607409.7 | E94: 546076.9 | F94: 1153486.6 | G94: 1153486.6 | H94: 1
A95: 6 | B95: Տեղ | C95: 156131.8 | D95: 55292.6 | E95: 100839.2 | F95: 156131.8 | G95: 156131.8 | H95: 1
A96: 7 | B96: Քաջարան | C96: 227508.7 | D96: 98015.8 | E96: 129492.9 | F96: 227508.7 | G96: 227508.7 | H96: 1
B97: ԸՆԴԱՄԵՆԸ | C97: =SUM(C90:C96) -> 4737698.1 | D97: =SUM(D90:D96) -> 2193701.1 | E97: 2543997 | F97: 4737698.1 | G97: 4737698.1 | H97: 1
B99: ՀՀ ՎԱՅՈՑ ՁՈՐԻ ՄԱՐԶ
A100: 1 | B100: Արենի | C100: 323299.2 | D100: 122159.4 | E100: 201139.8 | F100: 323299.2 | G100: 323299.2 | H100: =G100/F100 -> 1
A101: 2 | B101: Եղեգիս | C101: 203427.7 | D101: 81755 | E101: 121672.7 | F101: 203427.7 | G101: 203427.7 | H101: 1
A102: 3 | B102: Եղեգնաձոր | C102: 474593.2 | D102: 134419.2 | E102: 340174 | F102: 474593.2 | G102: 474593.2 | H102: 1
A103: 4 | B103: Ջերմուկ | C103: 154730.5 | D103: 55881.7 | E103: 98848.8 | F103: 154730.5 | G103: 154730.5 | H103: 1
A104: 5 | B104: Վայք | C104: 363782.3 | D104: 171457.8 | E104: 192324.5 | F104: 363782.3 | G104: 363782.3 | H104: 1
B105: ԸՆԴԱՄԵՆԸ | C105: =SUM(C100:C104) -> 1519832.9 | D105: =SUM(D100:D104) -> 565673.1 | E105: 954159.8 | F105: 1519832.9 | G105: 1519832.9 | H105: 1
B107: ՀՀ ՏԱՎՈՒՇԻ ՄԱՐԶ
A108: 1 | B108: Բերդ | C108: 916025 | D108: 402189.2 | E108: 513835.8 | F108: 916025 | G108: 916025 | H108: =G108/F108 -> 1
A109: 2 | B109: Դիլիջան | C109: 604363.4 | D109: 187580.9 | E109: 416782.5 | F109: 604363.4 | G109: 604363.4 | H109: =G109/F109 -> 1
A110: 3 | B110: Իջևան | C110: 1346238.8 | D110: 540916.6 | E110: 805322.2 | F110: 1346238.8 | G110: 1346238.8 | H110: =G110/F110 -> 1
A111: 4 | B111: Նոյեմբերյան | C111: 833510.8 | D111: 354748.6 | E111: 478762.2 | F111: 833510.8 | G111: 833510.8 | H111: =G111/F111 -> 1
B112: ԸՆԴԱՄԵՆԸ | C112: =SUM(C108:C111) -> 3700138 | D112: =SUM(D108:D111) -> 1485435.3 | E112: 2214702.7 | F112: 3700138 | G112: 3700138 | H112: =G112/F112 -> 1
A115: ¹ Հաստատված է «Հայաստանի Հանրապետության 2023 թվականի պետական բյուջեի մասին» Հայաստանի Հանրապետության օրենքով:
A116: ² Հաշվի են առնված հաշվետու ժամանակաշրջանում օրենսդրության համաձայն կատարված փոփոխությունները:
